{"text_format":"3","workbook":"xlsx","n_sheets":2,"sheets":["徐淮阜门窗采购清单","品牌要求"],"not_rendered":{"images":3,"defined_names":2},"read":"whole","date_system":"1900"}

{"sheet":"徐淮阜门窗采购清单","index":0,"n_rows":30,"n_cols":6,"rows_kept":30,"merged":[[0,0,0,5],[1,0,2,0],[1,1,2,1],[1,2,2,2],[1,3,2,3],[1,4,2,4],[1,5,2,5],[29,0,29,5]]}
["徐淮阜门窗采购清单"]
["序号","名称","工程量（㎡）","单价（元）","合价（元）","备注（注明：型材、玻璃、门锁品牌）"]
[]
[1,"普通铝合金推拉门\n1、门窗代号及洞口尺寸：各种尺寸规格\n2、门窗材质：90型普通铝材（壁厚2.0mm）\n3、玻璃品种、厚度：6透明+12A+6透明\n4、具体详见现场、图集、招标文件、招标文件补遗、政府相关文件、规范等其它资料，满足验收及使用要求",100.32,null,{"$f":"C4*D4","v":{"v":0,"d":"0.00"}}]
[2,"断热铝合金平开窗\n1、窗代号及洞口尺寸：各种尺寸规格\n2、窗材质：不低于60型断桥铝材（壁厚：外窗≥1.8mm，内窗≥1.4mm）\n3、玻璃品种、厚度：6高透光双银Low-E+20氩气+6透明\n4、具体详见现场、图集、招标文件、招标文件补遗、政府相关文件、规范等其它资料，满足验收及使用要求\n5、含金刚纱纱窗\n6、含消防救援窗（部分包含具体详见图纸）\n7、含电动排烟窗（部分包含具体详见图纸）\n8、含手动开启装置（部分包含具体详见图纸）                                             ",{"$f":"653.43-C6-60.12","v":267.31},null,{"v":0,"d":"0.00"}]
[3,"断热铝合金平开窗\n1、窗代号及洞口尺寸：各种尺寸规格\n2、窗材质：不低于60型断桥铝材（壁厚：外窗≥1.8mm，内窗≥1.4mm）\n3、玻璃品种、厚度：6Low-E+12氩气+6透明\n4、具体详见现场、图集、招标文件、招标文件补遗、政府相关文件、规范等其它资料，满足验收及使用要求\n5、含金刚纱纱窗\n6、含消防救援窗（部分包含具体详见图纸）\n7、含电动排烟窗（部分包含具体详见图纸）\n8、含手动开启装置（部分包含具体详见图纸）                                             ",{"v":326,"d":"326.00"},null,{"v":0,"d":"0.00"}]
[4,"断热铝合金推拉窗\n1、窗代号及洞口尺寸：各种尺寸规格\n2、窗材质：不低于105型断桥铝材（壁厚：外窗≥1.8mm，内窗≥1.4mm）\n3、玻璃品种、厚度：6高透光双银Low-E+20氩气+6透明\n4、具体详见现场、图集、招标文件、招标文件补遗、政府相关文件、规范等其它资料，满足验收及使用要求\n5、含金刚纱纱窗                           ",{"$f":"60.12/2","v":30.06},null,{"v":0,"d":"0.00"}]
[5,"断热铝合金推拉窗\n1、窗代号及洞口尺寸：各种尺寸规格\n2、窗材质：不低于80型断桥铝材（壁厚：外窗≥1.8mm，内窗≥1.4mm）\n3、玻璃品种、厚度：6Low-E+12氩气+6透明\n4、具体详见现场、图集、招标文件、招标文件补遗、政府相关文件、规范等其它资料，满足验收及使用要求\n5、含金刚纱纱窗",30.06,null,{"v":0,"d":"0.00"}]
[6,"断热铝合金平开门\n1、门窗代号及洞口尺寸：各种尺寸规格\n2、门窗材质：不低于60型断桥铝材（壁厚：外门≥2.2mm，内门≥2.0mm）\n3、玻璃品种、厚度：6高透光双银Low-E+20氩气+6透明\n4、具体详见现场、图集、招标文件、招标文件补遗、政府相关文件、规范等其它资料，满足验收及使用要求",{"$f":"53.76-C10","v":27.76},null,{"v":0,"d":"0.00"}]
[7,"断热铝合金平开门\n1、门窗代号及洞口尺寸：各种尺寸规格\n2、门窗材质：不低于60型断桥铝材（壁厚：外门≥2.2mm，内门≥2.0mm）\n3、玻璃品种、厚度：6中透光Low-E+12氩气+6透明\n4、具体详见现场、图集、招标文件、招标文件补遗、政府相关文件、规范等其它资料，满足验收及使用要求",{"v":26,"d":"26.00"},null,{"v":0,"d":"0.00"}]
[8,"断热铝合金平开窗\n1、窗代号及洞口尺寸：各种尺寸规格\n2、窗材质：不低于60型断桥铝材（壁厚：外窗≥1.8mm，内窗≥1.4mm）\n3、玻璃品种、厚度：6高透光双银Low-E+20氩气+6透明\n4、具体详见现场、图集、招标文件、招标文件补遗、政府相关文件、规范等其它资料，满足验收及使用要求\n5、含金刚纱纱窗\n6、含消防救援窗（部分包含具体详见图纸）\n7、含电动排烟窗（部分包含具体详见图纸）\n8、含手动开启装置（部分包含具体详见图纸）",{"$f":"494.88-C12","v":234.88},null,{"v":0,"d":"0.00"}]
[9,"断热铝合金平开窗\n1、窗代号及洞口尺寸：各种尺寸规格\n2、窗材质：不低于60型断桥铝材（壁厚：外窗≥1.8mm，内窗≥1.4mm）\n3、玻璃品种、厚度：6+12A+6遮阳型\n4、具体详见现场、图集、招标文件、招标文件补遗、政府相关文件、规范等其它资料，满足验收及使用要求\n5、含金刚纱纱窗\n6、含消防救援窗（部分包含具体详见图纸）\n7、含电动排烟窗（部分包含具体详见图纸）\n8、含手动开启装置（部分包含具体详见图纸）",{"v":260,"d":"260.00"},null,{"v":0,"d":"0.00"}]
[10,"断热铝合金平开门\n1、门窗代号及洞口尺寸：各种尺寸规格\n2、门窗材质：不低于60型断桥铝材（壁厚：外门≥2.2mm，内门≥2.0mm）\n3、玻璃品种、厚度：6高透光双银Low-E+20氩气+6透明\n4、具体详见现场、图集、招标文件、招标文件补遗、政府相关文件、规范等其它资料，满足验收及使用要求",{"$f":"146.63-C14","v":70.63},null,{"v":0,"d":"0.00"}]
[11,"断热铝合金平开门\n1、门窗代号及洞口尺寸：各种尺寸规格\n2、门窗材质：不低于60型断桥铝材（壁厚：外门≥2.2mm，内门≥2.0mm）\n3、玻璃品种、厚度：6中透光Low-E+12空气+6透明\n4、具体详见现场、图集、招标文件、招标文件补遗、政府相关文件、规范等其它资料，满足验收及使用要求",{"v":76,"d":"76.00"},null,{"v":0,"d":"0.00"}]
[12,"断热铝合金窗（高透光双银玻璃）\n1、窗代号及洞口尺寸：各种尺寸规格\n2、窗材质：不低于60型断桥铝材（壁厚：外窗≥1.8mm，内窗≥1.4mm）\n3、玻璃品种、厚度：6高透光双银Low-E+20氩气+6透明\n4、具体详见现场、图集、招标文件、招标文件补遗、政府相关文件、规范等其它资料，满足验收及使用要求\n5、外门窗开启扇设置纱窗扇\n6、含消防救援窗（部分包含具体详见图纸）",{"$f":"86.2-44","v":{"v":42.2,"d":"42.20"}},null,{"v":0,"d":"0.00"}]
[13,"断热铝合金窗\n1、窗代号及洞口尺寸：各种尺寸规格\n2、窗材质：不低于60型断桥铝材（壁厚：外窗≥1.8mm，内窗≥1.4mm）\n3、玻璃品种、厚度：6+12A+6遮阳型\n4、具体详见现场、图集、招标文件、招标文件补遗、政府相关文件、规范等其它资料，满足验收及使用要求\n5、外门窗开启扇设置纱窗扇\n6、含消防救援窗（部分包含具体详见图纸）",{"v":44,"d":"44.00"},null,{"v":0,"d":"0.00"}]
[14,"断热铝合金窗（高透光双银玻璃）\n1、窗代号及洞口尺寸：各种尺寸规格\n2、窗材质：90型断桥铝材（壁厚：外窗≥1.8mm，内窗≥1.4mm）\n3、玻璃品种、厚度：6高透光双银Low-E+20氩气+6透明\n4、具体详见现场、图集、招标文件、招标文件补遗、政府相关文件、规范等其它资料，满足验收及使用要求\n4、外门窗开启扇设置纱窗扇\n5、含消防救援窗（部分包含具体详见图纸）",{"$f":"58.56-C18","v":28.56},null,{"v":0,"d":"0.00"}]
[15,"断热铝合金窗\n1、窗代号及洞口尺寸：各种尺寸规格\n2、窗材质：80型断桥铝材（壁厚：外窗≥1.8mm，内窗≥1.4mm）\n3、玻璃品种、厚度：6+12A+6遮阳型\n4、具体详见现场、图集、招标文件、招标文件补遗、政府相关文件、规范等其它资料，满足验收及使用要求\n4、外门窗开启扇设置纱窗扇\n5、含消防救援窗（部分包含具体详见图纸）",{"v":30,"d":"30.00"},null,{"v":0,"d":"0.00"}]
[16,"断热铝合金地弹门\n1、窗代号及洞口尺寸：各种尺寸规格\n2、窗材质：不低于60型断桥铝材（壁厚2.2mm）\n3、玻璃品种、厚度：6高透光双银Low-E+20氩气+6透明\n4、具体详见现场、图集、招标文件、招标文件补遗、政府相关文件、规范等其它资料，满足验收及使用要求",{"$f":"28.8-C20","v":{"v":13.8,"d":"13.80"}},null,{"v":0,"d":"0.00"}]
[17,"断热铝合金地弹门\n1、窗代号及洞口尺寸：各种尺寸规格\n2、窗材质：不低于60型断桥铝材（壁厚2.2mm）\n3、玻璃品种、厚度：6中透光Low-E+12A+6型\n4、具体详见现场、图集、招标文件、招标文件补遗、政府相关文件、规范等其它资料，满足验收及使用要求",{"v":15,"d":"15.00"},null,{"v":0,"d":"0.00"}]
[18,"断热铝合金门联窗\n1、窗代号及洞口尺寸：各种尺寸规格\n2、窗材质：不低于60型断桥铝材（壁厚2.2mm）\n3、玻璃品种、厚度：6高透光双银Low-E+20氩气+6透明\n4、具体详见现场、图集、招标文件、招标文件补遗、政府相关文件、规范等其它资料，满足验收及使用要求\n5、含护门板、横执把手",{"$f":"66.24-C22","v":33.24},null,{"v":0,"d":"0.00"}]
[19,"断热铝合金门联窗\n1、窗代号及洞口尺寸：各种尺寸规格\n2、窗材质：不低于60型断桥铝材（壁厚2.2mm）\n3、玻璃品种、厚度：6高透光双银Low-E+20氩气+6透明\n4、具体详见现场、图集、招标文件、招标文件补遗、政府相关文件、规范等其它资料，满足验收及使用要求\n5、含护门板、横执把手",{"v":33,"d":"33.00"},null,{"v":0,"d":"0.00"}]
[20,"断热铝合金平开窗\n1、窗代号及洞口尺寸：各种尺寸规格\n2、窗材质：不低于60型断桥铝材（壁厚：外窗≥1.8mm，内窗≥1.4mm）\n3、玻璃品种、厚度：6Low-E+20氩气内置中空百叶+6透明暖边\n4、具体详见现场、图集、招标文件、招标文件补遗、政府相关文件、规范等其它资料，满足验收及使用要求\n5、含金刚纱纱窗\n6、含手动开启装置",{"$f":"462.81-C24","v":232.81},null,{"v":0,"d":"0.00"}]
[21,"断热铝合金平开窗\n1、窗代号及洞口尺寸：各种尺寸规格\n2、窗材质：不低于60型断桥铝材（壁厚：外窗≥1.8mm，内窗≥1.4mm）\n3、玻璃品种、厚度：6高透光Low-E+12空气+6透明\n4、具体详见现场、图集、招标文件、招标文件补遗、政府相关文件、规范等其它资料，满足验收及使用要求\n5、含金刚纱纱窗\n6、含手动开启装置（部分包含具体详见图纸）",{"v":230,"d":"230.00"},null,{"v":0,"d":"0.00"}]
[22,"断热铝合金平开窗\n1、窗代号及洞口尺寸：各种尺寸规格\n2、窗材质：不低于60型断桥铝材（壁厚：外窗≥1.8mm，内窗≥1.4mm）\n3、玻璃品种、厚度：6高透双银Low-E+20氩气内置中空百叶+6透明暖边\n4、具体详见现场、图集、招标文件、招标文件补遗、政府相关文件、规范等其它资料，满足验收及使用要求\n5、含金刚纱纱窗\n6、含消防救援窗（部分包含具体详见图纸）\n7、含手动开启装置（部分包含具体详见图纸）",{"$f":"264.6-C26","v":{"v":134.6,"d":"134.60"}},null,{"v":0,"d":"0.00"}]
[23,"断热铝合金平开窗\n1、窗代号及洞口尺寸：各种尺寸规格\n2、窗材质：不低于60型断桥铝材（壁厚：外窗≥1.8mm，内窗≥1.4mm）\n3、玻璃品种、厚度：6高透光Low-E+12空气+6透明\n4、具体详见现场、图集、招标文件、招标文件补遗、政府相关文件、规范等其它资料，满足验收及使用要求\n5、含金刚纱纱窗\n6、含消防救援窗（部分包含具体详见图纸）\n7、含手动开启装置（部分包含具体详见图纸）",{"v":130,"d":"130.00"},null,{"v":0,"d":"0.00"}]
[24,"成品普通铝合金移门\n1、窗代号及洞口尺寸：各种尺寸规格\n2、门窗材质：90型普通铝材（壁厚2.0mm）\n3、玻璃品种、厚度：6透明+12A+6透明\n4、具体详见现场、图集、招标文件、招标文件补遗、政府相关文件、规范等其它资料，满足验收及使用要求",{"v":230.4,"d":"230.40"},null,{"v":0,"d":"0.00"}]
[25,"普通铝合金窗\n1、窗代号及洞口尺寸：各种尺寸规格\n2、窗材质：90型普通铝材（壁厚：外窗≥1.8mm，内窗≥1.4mm）\n3、玻璃品种、厚度：铝合金单层玻璃窗,玻璃为6厚\n4、具体详见现场、图集、招标文件、招标文件补遗、政府相关文件、规范等其它资料，满足验收及使用要求\n5、含消防救援窗（部分包含具体详见图纸）\n6、所有窗户均需外设金刚纱纱窗",141.84,null,{"v":0,"d":"0.00"}]
[26,"合计",null,null,{"$f":"SUM(E4:E28)","v":{"v":0,"d":"0.00"}}]
["备注：1、消防救援窗、电动排烟窗及手动开启装置投标人需结合图纸综合考虑，不论清单特征中有无此类(含消防救援窗、电动排烟窗及手动开启装置)描述，结算时均不可因此调价。"]

{"sheet":"品牌要求","index":1,"n_rows":0,"n_cols":0,"rows_kept":0}